bitfinex/quotes_ETHUSD_20250905
["timestamp","ask_amount","ask_price","bid_price","bid_amount"]
[1757050855682,0.3411,4344.8,4344.7,10.51285488]
[1757050855885,0.8183,4344.8,4344.7,14.35485488]
[1757050856050,0.3411,4344.8,4344.7,14.35485488]
[1757050856379,0.026,4344.8,4344.7,14.35485488]
[1757050860608,1e-08,4344.8,4344.7,20.69511336]
[1757050860755,1e-08,4344.8,4344.7,20.02811661]
[1757050860954,1e-08,4344.8,4344.7,12.72631661]
[1757050861188,1e-08,4344.8,4344.7,2.1732]
[1757050861189,1.12200001,4344.8,4344.7,2.1732]
[1757050861403,1.12200001,4344.8,4344.7,1.696]
[1757050861608,1.12200001,4344.8,4344.7,5.569]
[1757050861808,3.42360192,4344.8,4344.7,1.696]
[1757050862095,0.65900001,4344.8,4344.7,5.57]
[1757050862297,0.18180001,4344.8,4344.7,5.57]
[1757050862759,0.65900001,4344.8,4344.7,5.57]
[1757050862965,1.12200001,4344.8,4344.7,5.57]
[1757050863601,0.18180001,4344.8,4344.7,5.569]
[1757050863970,1e-08,4344.8,4344.7,5.569]
[1757050864691,0.18470001,4344.8,4344.7,5.569]
[1757050864892,1.12210001,4344.8,4344.7,5.569]
[1757050865066,0.18470001,4344.8,4344.7,5.569]
[1757050865390,1e-08,4344.8,4344.7,5.569]
[1757050866401,1e-08,4344.8,4344.7,8.63805488]
[1757050866597,1e-08,4344.8,4344.7,9.50186037]
[1757050867507,1e-08,4344.8,4344.7,9.98516037]
[1757050868004,1e-08,4344.8,4344.7,16.38516037]
[1757050868803,1e-08,4344.8,4344.7,19.93695712]
[1757050869409,1e-08,4344.8,4344.7,22.93695712]
[1757050870693,1e-08,4344.8,4344.7,23.05215712]
[1757050872081,1e-08,4344.8,4344.7,23.14438794]
[1757050876923,1e-08,4344.8,4344.7,11.78159119]
[1757050877089,0.20930001,4344.8,4344.7,10.6050857]
[1757050877293,0.20930001,4344.8,4344.7,14.4730857]
[1757050878578,1e-08,4344.8,4344.7,14.4730857]
[1757050879289,1e-08,4344.8,4344.7,14.7794857]
[1757050879500,1e-08,4344.8,4344.7,16.48800794]
[1757050879886,1e-08,4344.8,4344.7,16.18160794]
[1757050880413,0.20930001,4344.8,4344.7,16.18160794]
[1757050881221,1e-08,4344.8,4344.7,16.18160794]
[1757050881441,1e-08,4344.8,4344.7,16.48800794]
[1757050881842,0.20930001,4344.8,4344.7,16.18160794]
[1757050882020,0.20930001,4344.8,4344.7,14.4730857]
[1757050882941,1e-08,4344.8,4344.7,14.4730857]
[1757050883318,1e-08,4344.8,4344.7,15.2377857]
[1757050883520,1e-08,4344.8,4344.7,17.5377857]
[1757050884136,1e-08,4344.8,4344.7,17.44555488]
[1757050884341,1e-08,4344.8,4344.7,20.16866285]
[1757050885940,1e-08,4344.8,4344.7,23.16866285]
[1757050887429,1e-08,4344.8,4344.7,23.26089261]
[1757050891832,1e-08,4344.8,4344.7,18.17299261]
[1757050892051,1e-08,4344.8,4344.7,22.03299261]
[1757050892248,1e-08,4344.8,4344.7,23.25289261]
[1757050893049,1e-08,4344.8,4344.7,22.33939261]
[1757050893239,0.66950001,4344.8,4344.7,16.67285488]
[1757050894350,0.20930001,4344.8,4344.7,16.67285488]
[1757050896862,1e-08,4344.8,4344.7,16.67285488]
[1757050897051,1e-08,4344.8,4344.7,16.97925488]
[1757050897246,1e-08,4344.8,4344.7,17.43445488]
[1757050897454,1e-08,4344.8,4344.7,23.7124596]
[1757050900636,0.28820001,4344.8,4344.7,15.08076285]
[1757050900939,0.74540001,4344.8,4344.7,14.36885488]
[1757050901354,0.28820001,4344.8,4344.7,14.36885488]
[1757050901548,1e-08,4344.8,4344.7,14.36885488]
[1757050903649,0.28820001,4344.8,4344.7,14.36885488]
[1757050903962,1e-08,4344.8,4344.7,15.15255488]
[1757050904266,1e-08,4344.8,4344.7,17.77430359]
[1757050904967,1e-08,4344.8,4344.7,20.77430359]
[1757050905537,1e-08,4344.8,4344.7,20.86653441]
[1757050906240,1e-08,4344.8,4344.7,24.41833116]
[1757050906458,1e-08,4344.8,4344.7,25.09513116]
[1757050906786,0.001,4345.3,4345.2,2.30139003]
[1757050906984,0.001,4345.3,4345.2,13.19048687]
[1757050907176,0.001,4345.3,4345.2,14.53977297]
[1757050907486,0.001,4345.3,4345.2,11.0801911]
[1757050909760,0.001,4345.3,4345.2,11.8721911]
[1757050918287,0.001,4345.3,4345.2,18.2721911]
[1757050919494,0.001,4345.3,4345.2,12.3690911]
[1757050919495,0.1984,4345.3,4345.2,12.3690911]
[1757050919668,1.1032,4345.3,4345.2,16.12587622]
[1757050919869,1.1032,4345.3,4345.2,15.66559003]
[1757050920194,0.1984,4345.3,4345.2,15.66559003]
[1757050920568,0.001,4345.3,4345.2,17.71469003]
[1757050921366,0.001,4345.3,4345.2,17.80689853]
[1757050923402,1e-08,4345.8,4345.7,2.30112525]
[1757050923602,1e-08,4345.8,4345.7,15.42446759]
[1757050923804,1e-08,4345.8,4345.7,16.77375634]
[1757050924108,1e-08,4345.8,4345.7,23.17375634]
[1757050924406,1e-08,4345.8,4345.7,23.96575634]
[1757050924714,0.00100001,4345.8,4345.7,24.44085634]
[1757050927517,0.001,4346.2,4346.1,6.09291346]
[1757050927679,0.001,4346.2,4346.1,16.38430436]
[1757050928009,0.001,4346.2,4346.1,17.28320436]
[1757050928201,0.001,4346.2,4346.1,24.14040436]
[1757050928398,0.001,4346.2,4346.1,24.61380436]
[1757050928709,0.001,4346.2,4346.1,23.67020436]
[1757050929413,0.001,4346.2,4346.1,24.10600436]
[1757050930896,0.001,4346.2,4346.1,23.67020436]
[1757050931096,0.001,4346.2,4346.1,24.55930436]
[1757050931493,0.001,4346.2,4346.1,23.67020436]
[1757050932209,0.001,4346.2,4346.1,24.10600436]
[1757050932409,0.001,4346.2,4346.1,24.55930436]
[1757050933706,0.001,4346.2,4346.1,26.85930436]
[1757050934314,0.001,4346.2,4346.1,26.40600436]
[1757050934616,0.001,4346.2,4346.1,25.97020436]
[1757050934984,0.001,4346.2,4346.1,26.40600436]
[1757050935483,1e-08,4346.8,4346.7,3.09259585]
[1757050935688,1e-08,4346.8,4346.7,11.15585544]
[1757050936017,0.19740001,4346.8,4346.7,11.27105544]
[1757050936187,0.19740001,4346.8,4346.7,18.12115544]
[1757050937181,0.19740001,4346.8,4346.7,18.12315544]
[1757050937379,0.68780001,4346.8,4346.7,14.27015544]
[1757050937605,0.68780001,4346.8,4346.7,18.12315544]
[1757050938608,0.68780001,4346.8,4346.7,18.12215544]
[1757050939913,1.13540001,4346.8,4346.7,18.12215544]
[1757050940079,1.13540001,4346.8,4346.7,17.36279585]
[1757050942112,1.13640001,4346.8,4346.7,17.36279585]
[1757050942889,1.13640001,4346.8,4346.7,14.36579585]
[1757050943409,1.13640001,4346.8,4346.7,10.51079585]
[1757050943584,1.13640001,4346.8,4346.7,14.36579585]
[1757050946208,1.13640001,4346.8,4346.7,1.8102]
[1757050946410,1.13640001,4346.8,4346.7,5.55]
[1757050947223,1.13640001,4346.8,4346.7,1.695]
[1757050947522,3.43694293,4346.8,4346.7,5.551]
[1757050947923,3.55214293,4346.8,4346.7,5.551]
[1757050948095,3.55214293,4346.8,4346.7,5.55]
[1757050948522,3.55214293,4346.8,4346.7,3.855]
[1757050948926,2.3006134,4346.7,4346.1,0.004]
[1757050949120,0.1152,4346.3,4346.2,3.859]
[1757050949321,1.2517,4346.3,4346.2,3.859]
[1757050950522,1.2517,4346.3,4346.2,3.9742]
[1757050950523,0.3098,4346.3,4346.2,3.9742]
[1757050950723,0.00100001,4346.8,4346.7,2.30059585]
[1757050951020,0.00100001,4346.8,4346.7,7.97879585]
[1757050951191,0.19840001,4346.8,4346.7,7.97879585]
[1757050951398,1.13640001,4346.8,4346.7,1.8102]
[1757050951610,1.13640001,4346.8,4346.7,5.6792]
[1757050952635,0.68880001,4346.8,4346.7,5.6792]
[1757050952832,0.19840001,4346.8,4346.7,5.6792]
[1757050953534,0.19840001,4346.8,4346.7,7.97979585]
[1757050953739,0.00100001,4346.8,4346.7,8.26849585]
[1757050954922,0.00100001,4346.8,4346.7,7.97979585]
[1757050957418,0.19840001,4346.8,4346.7,7.97979585]
[1757050957936,0.19840001,4346.8,4346.7,5.6792]
[1757050958140,0.68880001,4346.8,4346.7,5.6792]
[1757050958340,0.68880001,4346.8,4346.7,12.0792]
[1757050958840,0.68880001,4346.8,4346.7,5.6792]
[1757050961750,0.68880001,4346.8,4346.7,1.8102]
[1757050962044,3.55214293,4346.8,4346.7,5.559]
[1757050963236,3.55214293,4346.8,4346.7,1.695]
[1757050963445,3.55214293,4346.8,4346.7,5.56]
[1757050965749,0.80400001,4346.8,4346.7,5.56]
[1757050966063,0.00100001,4346.8,4346.7,5.8479]
[1757050966248,0.00100001,4346.8,4346.7,5.56]
[1757050966764,0.17410001,4346.8,4346.7,5.56]
[1757050967944,0.62440001,4346.8,4346.7,1.695]
[1757050968127,1.21120001,4346.8,4346.7,5.561]
[1757050968654,0.28930001,4346.8,4346.7,5.561]
[1757050969749,0.11620001,4346.8,4346.7,5.561]
[1757050969969,0.29230001,4346.8,4346.7,5.561]
[1757050970624,0.00100001,4346.8,4346.7,6.2875]
[1757050970827,0.00100001,4346.8,4346.7,9.06739585]
[1757050971525,0.00100001,4346.8,4346.7,6.7668]
[1757050971729,0.00100001,4346.8,4346.7,6.2875]
[1757050972333,0.00100001,4346.8,4346.7,8.58809585]
[1757050972864,0.00100001,4346.8,4346.7,6.2875]
[1757050973652,0.00100001,4346.8,4346.7,9.06739585]
[1757050975291,0.17410001,4346.8,4346.7,5.561]
[1757050975435,0.17410001,4346.8,4346.7,1.695]
[1757050975635,1.09600001,4346.8,4346.7,1.695]
[1757050975846,3.39654293,4346.8,4346.7,5.561]
[1757050976053,3.51174293,4346.8,4346.7,5.561]
[1757050976634,1.21120001,4346.8,4346.7,5.561]
[1757050976841,0.73960001,4346.8,4346.7,5.561]
[1757050977861,3.51174293,4346.8,4346.7,5.561]
[1757050978753,3.51174293,4346.8,4346.7,5.56]
[1757050979478,1.21120001,4346.8,4346.7,5.56]
[1757050979678,0.73960001,4346.8,4346.7,5.56]
[1757050979851,0.28930001,4346.8,4346.7,5.56]
[1757050980978,0.11620001,4346.8,4346.7,5.56]
[1757050981765,0.11620001,4346.8,4346.7,5.8479]
[1757050982498,0.00100001,4346.8,4346.7,9.18159585]
[1757050983208,0.00100001,4346.8,4346.7,6.881]
[1757050983700,0.00100001,4346.8,4346.7,9.18159585]
[1757050983901,0.00100001,4346.8,4346.7,6.881]
[1757050984501,0.00100001,4346.8,4346.7,9.18159585]
[1757050984682,0.00100001,4346.8,4346.7,5.9631]
[1757050984882,0.00100001,4346.8,4346.7,5.6752]
[1757050985077,0.17410001,4346.8,4346.7,5.6752]
[1757050985479,0.17410001,4346.8,4346.7,5.558]
[1757050987530,0.00100001,4346.8,4346.7,5.558]
[1757050988239,0.00100001,4346.8,4346.7,6.879]
[1757050988533,0.00100001,4346.8,4346.7,9.17959585]
[1757050989520,0.00100001,4346.8,4346.7,8.70029585]
[1757050990026,0.00100001,4346.8,4346.7,6.3997]
[1757050990819,0.00100001,4346.8,4346.7,8.70029585]
[1757050991004,0.00100001,4346.8,4346.7,6.3997]
[1757050991200,0.00100001,4346.8,4346.7,8.70029585]
[1757050992842,0.00100001,4346.8,4346.7,6.3997]
[1757050993125,0.21710001,4346.8,4346.7,5.556]
[1757050995624,0.00100001,4346.8,4346.7,5.556]
[1757050996046,0.00100001,4346.8,4346.7,5.8627]
[1757050996234,0.00100001,4346.8,4346.7,6.2997]
[1757050997358,0.00100001,4346.8,4346.7,5.8627]
[1757050997659,0.00100001,4346.8,4346.7,5.556]
[1757050998362,0.00100001,4346.8,4346.7,5.8627]
[1757050999228,0.00100001,4346.8,4346.7,6.2997]
[1757050999763,0.00100001,4346.8,4346.7,5.8627]
[1757051002141,0.00100001,4346.8,4346.7,5.556]
[1757051005681,0.00100001,4346.8,4346.7,5.8627]
[1757051005874,0.00100001,4346.8,4346.7,6.2997]
[1757051006387,0.00100001,4346.8,4346.7,5.8627]
[1757051007774,0.00100001,4346.8,4346.7,6.2997]
[1757051009259,0.00100001,4346.8,4346.7,5.8627]
[1757051010774,0.00100001,4346.8,4346.7,5.548]
[1757051011382,0.00100001,4346.8,4346.7,6.2917]
[1757051011582,0.21710001,4346.8,4346.7,5.548]
[1757051011785,0.71330001,4346.8,4346.7,5.548]
[1757051012296,1.14230001,4346.8,4346.7,1.695]
[1757051012500,1.14230001,4346.8,4346.3,0.1152]
[1757051012501,5.3006083,4346.7,4346.1,0.004]
[1757051012651,2.30075464,4346.4,4346.2,3.853]
[1757051012853,3.44220758,4346.3,4346.2,3.853]
[1757051013197,3.13050758,4346.3,4346.2,3.853]
[1757051015156,3.55740758,4346.3,4346.2,3.853]
[1757051017556,3.13050758,4346.3,4346.2,3.853]
[1757051019658,0.8297,4346.3,4346.2,3.853]
[1757051019893,3.13050758,4346.3,4346.2,3.853]
[1757051021669,2.63430758,4346.3,4346.2,3.853]
[1757051021903,2.30086052,4346.2,4346.1,0.004]
[1757051022196,2.30086052,4346.2,4346.1,3.855]
[1757051022404,2.52116052,4346.2,4346.1,3.855]
[1757051025399,0.1152,4346.3,4346.1,3.855]
[1757051025588,2.3007052,4346.5,4346.1,4.643]
[1757051025776,0.1152,4346.2,4346.1,4.643]
[1757051026164,0.1152,4346.2,4346.1,5.0733]
[1757051029276,0.1152,4346.2,4346.1,4.5787]
[1757051029776,0.1152,4346.5,4346.1,5.0733]
[1757051029978,0.1152,4346.5,4346.2,0.4303]
[1757051030273,0.1152,4346.5,4346.3,3.849]
[1757051032197,0.3134,4346.4,4346.3,3.849]
[1757051033321,2.61415464,4346.4,4346.3,3.849]
[1757051036406,3.07765464,4346.4,4346.3,3.849]
[1757051038005,3.07765464,4346.4,4346.1,0.004]
[1757051038006,2.30086052,4346.2,4346.1,0.004]
[1757051038203,5.41606052,4346.2,4346.1,0.004]
[1757051038403,6.19296052,4346.2,4346.1,0.004]
[1757051039636,7.31776052,4346.2,4346.1,0.004]
[1757051040837,6.98496052,4346.2,4346.1,0.004]
[1757051043753,6.98496052,4346.2,4346.1,0.2974]
[1757051043754,5.41606052,4346.2,4346.1,0.2974]
[1757051043950,5.41606052,4346.2,4346.1,0.792]
[1757051044124,2.41606052,4346.2,4346.1,1.2223]
[1757051044545,2.41706052,4346.2,4346.1,1.2223]
[1757051045240,0.1162,4346.2,4346.1,1.2223]
[1757051045451,2.41706052,4346.2,4346.1,1.2223]
[1757051046044,0.1162,4346.2,4346.1,1.2223]
[1757051046222,2.41706052,4346.2,4346.1,1.2223]
[1757051047020,0.1162,4346.2,4346.1,1.2223]
[1757051047632,0.001,4346.2,4346.1,5.0713]
[1757051055254,0.001,4346.2,4346.1,5.74803]
[1757051056854,0.001,4346.2,4346.1,8.04894346]
[1757051057041,0.001,4346.2,4346.1,8.16414346]
[1757051061563,0.001,4346.2,4346.1,5.86323]
[1757051062858,0.001,4346.2,4346.1,2.01423]
[1757051063064,0.001,4346.2,4346.1,8.16314346]
[1757051065369,0.001,4346.2,4346.1,8.25535621]
[1757051067442,0.001,4346.2,4346.1,10.55535621]
[1757051067837,0.001,4346.2,4346.1,16.95535621]
[1757051085271,0.001,4346.2,4346.1,16.95535621]
[1757051088679,0.001,4346.2,4346.1,16.52505621]
[1757051088884,0.001,4346.2,4346.1,16.97205621]
[1757051090085,0.001,4346.2,4346.1,16.47745621]
[1757051091289,0.001,4346.2,4346.1,15.73705621]
[1757051091470,0.001,4346.2,4346.1,16.48105621]
[1757051092182,0.001,4346.2,4346.1,16.36585621]
[1757051093488,0.001,4346.2,4346.1,16.82925621]
[1757051095387,0.001,4346.2,4346.1,16.36585621]
[1757051095903,0.2894,4346.2,4346.1,11.77385621]
[1757051096199,0.2894,4346.2,4346.1,15.62185621]
[1757051096695,0.7795,4346.2,4346.1,15.62185621]
[1757051096896,0.2894,4346.2,4346.1,15.62185621]
[1757051098796,0.2894,4346.2,4345.7,0.451]
[1757051098797,4.6850218,4346.2,4345.7,0.004]
[1757051099104,4.6850218,4346.2,4345.6,0.004]
[1757051099105,3.5480218,4345.8,4345.6,0.004]
[1757051099399,3.5480218,4345.8,4345.7,0.481]
[1757051099604,4.6840218,4345.8,4345.7,0.481]
[1757051100021,5.1650218,4345.8,4345.7,0.481]
[1757051100307,1.617,4345.8,4345.7,0.481]
[1757051101316,3.91807229,4345.8,4345.7,0.481]
[1757051101604,1.617,4345.8,4345.7,0.481]
[1757051105390,1.136,4345.8,4345.7,0.481]
[1757051106303,0.7785,4345.8,4345.7,0.481]
[1757051106933,0.001,4346.2,4345.8,2.30107229]
[1757051107133,0.001,4346.2,4346.1,2.59791346]
[1757051107299,0.001,4346.2,4346.1,8.99791346]
[1757051107499,0.001,4346.2,4346.1,10.00052196]
[1757051109506,0.001,4346.2,4346.1,13.85952196]
[1757051110319,0.001,4346.2,4346.1,16.85952196]
[1757051110631,0.001,4346.2,4346.1,19.12742993]
[1757051111001,0.001,4346.2,4346.1,19.91942993]
[1757051111829,0.001,4346.2,4346.1,22.21942993]
[1757051114806,0.001,4346.2,4346.1,17.56842993]
[1757051115151,0.001,4346.2,4346.1,24.97745173]
[1757051116343,0.001,4346.2,4346.1,25.76945173]
[1757051117345,0.001,4346.2,4346.1,17.56192993]
[1757051117539,0.001,4346.2,4346.1,21.42692993]
[1757051117742,0.001,4346.2,4346.1,25.76695173]
[1757051132575,0.001,4346.2,4346.1,25.76395173]
[1757051133162,0.001,4346.2,4346.1,25.30055173]
[1757051136674,0.001,4346.2,4346.1,25.78515173]
[1757051137785,0.6559,4346.2,4346.1,16.36102993]
[1757051137957,0.6559,4346.2,4346.1,17.86091346]
[1757051141883,0.1839,4346.2,4346.1,17.86091346]
[1757051143969,0.6512,4346.2,4346.1,17.86091346]
[1757051144179,0.6512,4346.2,4346.1,14.00091346]
[1757051144375,0.6512,4346.2,4346.1,17.86091346]
[1757051145794,0.1839,4346.2,4346.1,17.86091346]
[1757051146159,0.001,4346.2,4346.1,17.86091346]
[1757051146594,0.001,4346.2,4346.1,18.16851346]
[1757051147470,0.001,4346.2,4346.1,17.86091346]
[1757051149097,0.001,4346.2,4346.1,20.44486045]
[1757051150082,0.001,4346.2,4346.1,20.5370477]
[1757051151701,0.001,4346.2,4346.1,24.85624223]
[1757051153669,0.001,4346.2,4346.1,24.36144223]
[1757051155205,0.001,4346.2,4346.1,18.93604223]
[1757051155407,0.001,4346.2,4346.1,18.68926045]
[1757051155787,0.001,4346.2,4346.1,19.15506045]
[1757051157106,0.2936,4346.2,4346.1,18.38166045]
[1757051157297,0.001,4346.2,4346.1,18.68926045]
[1757051157498,0.001,4346.2,4346.1,19.15506045]
[1757051159207,0.001,4346.2,4346.1,18.68926045]
[1757051159386,0.001,4346.2,4346.1,19.15506045]
[1757051160794,0.001,4346.2,4346.1,19.64986045]
[1757051163412,0.001,4346.2,4346.1,19.15506045]
[1757051164011,0.2002,4346.2,4346.1,18.38066045]
[1757051164409,0.001,4346.7,4346.5,2.30070171]
[1757051164709,0.001,4346.7,4346.6,5.551]
[1757051165021,0.001,4346.7,4346.6,16.55164878]
[1757051165209,0.1,4346.7,4346.6,16.55164878]
[1757051166030,0.001,4346.7,4346.6,16.55164878]
[1757051166190,0.1,4346.7,4346.6,16.55164878]
[1757051166632,0.1,4346.7,4346.6,8.095]
[1757051166807,0.9151,4346.7,4346.6,14.25164878]
[1757051167038,0.9151,4346.7,4346.6,7.85164878]
[1757051167530,0.5673,4346.7,4346.6,7.85164878]
[1757051170946,0.5673,4346.7,4346.6,14.25164878]
[1757051174618,0.1,4346.7,4346.6,14.25164878]
[1757051176534,0.5617,4346.7,4346.6,14.25164878]
[1757051177922,0.1,4346.7,4346.6,14.25164878]
[1757051178640,0.5642,4346.7,4346.6,8.095]
[1757051178813,0.5642,4346.7,4346.6,14.24764878]
[1757051179226,0.9095,4346.7,4346.6,11.947]
[1757051179922,0.5642,4346.7,4346.6,11.947]
[1757051180238,0.9095,4346.7,4346.6,11.947]
[1757051180916,0.5642,4346.7,4346.6,11.947]
[1757051181530,0.5642,4346.7,4346.6,8.095]
[1757051181735,0.5642,4346.7,4346.6,11.947]
[1757051181937,0.5642,4346.7,4346.6,8.095]
[1757051182145,0.5642,4346.7,4346.6,11.947]
[1757051182317,0.5642,4346.7,4346.6,14.24764878]
[1757051183337,0.1025,4346.7,4346.6,14.24764878]
[1757051184215,0.1025,4346.7,4346.6,14.54564878]
[1757051184216,0.001,4346.7,4346.6,14.54564878]
[1757051184415,0.001,4346.7,4346.6,16.66698662]
[1757051184618,0.001,4346.7,4346.6,14.98234878]
[1757051185229,0.001,4346.7,4346.6,15.07454559]
[1757051185436,0.001,4346.7,4346.6,15.56614559]
[1757051196023,0.001,4346.7,4346.6,15.07454559]
[1757051197953,0.001,4346.7,4346.6,17.37454559]
[1757051198155,0.001,4346.7,4346.6,18.65653311]
[1757051198457,0.001,4346.7,4346.6,19.39123311]
[1757051198826,0.5806,4346.7,4346.6,12.78784559]
[1757051199067,0.9284,4346.7,4346.6,16.54564878]
[1757051199430,0.5806,4346.7,4346.6,16.54564878]
[1757051203131,0.001,4346.7,4346.6,16.83234878]
[1757051203336,0.001,4346.7,4346.6,16.54564878]
[1757051203835,0.001,4346.7,4346.6,14.24564878]
[1757051205740,0.001,4346.7,4346.6,14.67504878]
[1757051206988,0.001,4346.7,4346.6,14.24564878]
[1757051207147,0.001,4346.7,4346.6,16.17844662]
[1757051207343,0.1,4346.7,4346.6,10.39564878]
[1757051207547,0.5806,4346.7,4346.6,14.24564878]
[1757051212552,0.1,4346.7,4346.6,14.24564878]
[1757051216182,0.001,4346.7,4346.6,15.41674878]
[1757051216602,0.001,4346.7,4346.6,14.33784686]
[1757051216756,0.001,4346.7,4346.6,14.62454686]
[1757051216950,0.001,4346.7,4346.6,15.05394686]
[1757051220165,0.001,4346.7,4346.6,14.33784686]
[1757051220364,0.1,4346.7,4346.6,14.33784686]
[1757051220765,0.1,4346.7,4346.6,10.39564878]
[1757051220960,0.1,4346.7,4346.6,14.24564878]
[1757051222291,0.001,4346.7,4346.6,14.24564878]
[1757051224065,0.001,4346.7,4346.6,14.96174878]
[1757051224494,0.001,4346.7,4346.6,14.24564878]
[1757051225618,0.001,4346.7,4346.6,1.695]
[1757051225619,0.5831,4346.7,4346.6,1.695]
[1757051225891,0.9284,4346.7,4346.6,3.85]
[1757051227292,4.47648001,4346.7,4346.1,0.004]
[1757051227493,2.30075276,4346.5,4346.1,0.004]
[1757051227676,4.47648001,4346.7,4346.2,3.85]
[1757051227677,2.30065456,4346.6,4346.2,3.85]
[1757051227881,0.1039,4346.3,4346.2,3.85]
[1757051228078,0.9274,4346.3,4346.2,3.85]
[1757051228869,0.5845,4346.3,4346.1,0.004]
[1757051229094,6.19184053,4346.2,4346.1,0.004]
[1757051229277,6.19184053,4346.2,4346.1,3.854]
[1757051229466,6.78694053,4346.2,4346.1,3.854]
[1757051230094,6.78694053,4346.2,4346.1,0.004]
[1757051230500,10.57894053,4346.2,4346.1,0.004]
[1757051233601,5.89596052,4346.2,4346.1,0.004]
[1757051234100,6.23646052,4346.2,4346.1,0.004]
[1757051235399,5.89596052,4346.2,4346.1,0.004]
[1757051240517,3.099,4346.2,4346.1,0.004]
[1757051240887,5.30086052,4346.2,4346.1,0.004]
[1757051242415,5.39986052,4346.2,4346.1,0.004]
[1757051243494,0.001,4346.7,4346.1,1.2141]
[1757051243692,0.001,4346.7,4346.2,0.899]
[1757051243901,0.001,4346.7,4346.3,2.30080758]
[1757051244210,0.001,4346.7,4346.6,0.3111]
[1757051244835,0.001,4346.7,4346.6,0.7387]
[1757051245336,0.001,4346.7,4346.6,3.51074878]
[1757051245533,0.001,4346.7,4346.6,4.09189753]
[1757051246966,0.001,4346.7,4346.6,7.94289753]
[1757051249546,0.001,4346.7,4346.6,7.47149753]
[1757051249943,0.001,4346.7,4346.6,7.94289753]
[1757051255214,0.001,4346.7,4346.6,7.04389753]
[1757051255432,0.001,4346.7,4346.6,7.47149753]
[1757051256116,0.001,4346.7,4346.6,7.94289753]
[1757051258931,0.001,4346.7,4346.6,7.47149753]
[1757051259316,0.001,4346.7,4346.6,6.73279753]
[1757051260043,0.001,4346.7,4346.4,6.8524]
[1757051260044,0.1,4346.7,4346.4,6.4]
[1757051260343,0.1,4346.7,4346.1,0.12541]
[1757051260344,0.1,4346.7,4346.6,3.85]
[1757051262043,0.5614,4346.7,4346.6,3.85]
[1757051263017,0.9092,4346.7,4346.6,3.85]
[1757051263363,3.20979585,4346.7,4346.1,0.004]
[1757051263566,2.30077885,4346.4,4346.1,0.004]
[1757051263860,2.30086052,4346.2,4346.1,0.004]
[1757051264065,2.40236052,4346.2,4346.1,0.004]
[1757051264582,3.20906052,4346.2,4346.1,0.004]
[1757051268262,6.20906052,4346.2,4346.1,0.004]
[1757051269728,5.86376052,4346.2,4346.1,0.004]
[1757051269933,3.1015,4346.2,4346.1,0.004]
[1757051270861,5.40236052,4346.2,4346.1,0.004]
[1757051272890,5.86376052,4346.2,4346.1,0.004]
[1757051274790,3.1015,4346.2,4346.1,0.004]
[1757051274972,3.0,4346.2,4346.1,0.004]
[1757051275282,3.0,4346.2,4346.1,0.747]
[1757051275466,3.0,4346.2,4346.1,0.2946]
[1757051275668,3.0,4346.2,4346.1,0.004]
[1757051275993,2.30162531,4346.7,4346.1,1.2387]
[1757051275994,2.30160508,4346.7,4346.1,1.2387]
[1757051276152,0.001,4346.7,4346.2,0.4524]
[1757051276351,2.30065437,4346.6,4346.3,0.9441]
[1757051276589,2.30065437,4346.6,4346.4,0.4524]
[1757051277288,0.001,4346.7,4346.4,0.4524]
[1757051277474,2.3006631,4346.6,4346.4,0.4524]
[1757051278577,2.30070171,4346.5,4346.1,0.004]
[1757051278777,2.60860171,4346.5,4346.1,0.004]
[1757051278980,2.76218633,4346.4,4346.1,0.004]
[1757051279979,2.30078633,4346.4,4346.1,0.004]
[1757051280289,2.30070769,4346.5,4346.1,0.004]
[1757051280469,2.30075539,4346.4,4346.1,0.004]
[1757051281170,0.001,4346.7,4346.1,0.4564]
[1757051281772,2.3015995,4346.7,4346.1,0.4564]
[1757051282693,2.30064878,4346.6,4346.1,0.4564]
[1757051282894,2.30161657,4346.7,4346.1,0.4564]
[1757051283309,2.30065122,4346.6,4346.1,0.4564]
[1757051283676,2.30065122,4346.6,4346.2,0.9441]
[1757051283891,2.30071014,4346.5,4346.3,0.4524]
[1757051284095,0.001,4346.7,4346.1,0.004]
[1757051284096,0.099,4346.4,4346.1,0.004]
[1757051284564,2.39980421,4346.4,4346.1,0.004]
[1757051284965,0.4614,4346.3,4346.1,0.004]
[1757051285168,0.001,4346.7,4346.3,0.2906]
[1757051285395,0.001,4346.7,4346.4,0.4524]
[1757051285600,0.001,4346.7,4346.4,0.9441]
[1757051285789,0.001,4346.7,4346.6,0.2906]
[1757051286179,0.001,4346.7,4346.6,0.743]
[1757051287869,0.001,4346.7,4346.1,0.004]
[1757051287870,0.792,4346.2,4346.1,0.004]
[1757051288105,11.14691362,4346.2,4346.1,0.004]
[1757051288908,10.85106052,4346.2,4346.1,0.004]
[1757051289112,10.50576052,4346.2,4346.1,0.004]
[1757051289317,10.51376052,4346.2,4346.1,0.004]
[1757051290576,10.41226052,4346.2,4346.1,0.004]
[1757051290770,6.65326052,4346.2,4346.1,0.004]
[1757051291086,2.30085708,4346.3,4346.1,0.7529]
[1757051292489,2.30086052,4346.2,4346.1,0.7529]
[1757051292675,2.30086052,4346.2,4346.1,0.004]
[1757051296499,2.30086052,4346.2,4346.1,0.3136]
[1757051296980,2.30086052,4346.2,4346.1,0.7529]
[1757051297401,2.60686052,4346.2,4346.1,0.004]
[1757051298807,2.30086052,4346.2,4346.1,0.004]
[1757051300514,2.30186052,4346.2,4346.1,0.004]
[1757051301086,0.001,4346.2,4346.1,0.7529]
[1757051301499,2.30186052,4346.2,4346.1,0.7529]
[1757051302078,2.30186052,4346.2,4346.1,0.3136]